Cogmind - Beta 13 *** ADVENTURER MODE // 2024.04.06 @ 00:09:49 Player: AnotherZach Result: Destroyed by P-70 Sage with High-powered Shock Rifle Performance ------------- Evolutions (6) 3000 Regions Visited (11) 2200 Robots Destroyed (324) 1620 Value Destroyed (11252) 11252 Prototype IDs (11) 220 Alien Tech Used (0) 0 Bonus (319) 319 TOTAL SCORE: 18611 Bonus ------- High Alert Combat Kills 169 Follower Combat Kills 150 Cogmind --------- Core Integrity 0/1150 Matter 22/300 Energy 190/200 System Corruption 11% Temperature Cool (0) Movement Core (300) Ox5 Location -4/Factory Parts ------- > --- POWER (2) -------- Cold Fusion Reactor > --- PROPULSION (4) --- (None) > --- UTILITY (10) ----- Enhanced Optical Array Improved Signal Interpreter Advanced Targeting Computer Advanced Targeting Computer Advanced Targeting Computer Improved Armor Integrity Analyzer > --- WEAPON (3) ------- Dispersion Rifle > --- INVENTORY (5) ---- Antimatter Reactor VTOL Module VTOL Module Improved Energy Well (400) System Restoration Module Peak State ------------ > --- POWER ------------ Light Antimatter Reactor Light Antimatter Reactor > --- PROPULSION ------- Armored Huge Wheel Armored Huge Wheel > --- UTILITY ---------- Power Amplifier Advanced Cryofiber Web Advanced Cooling System Large Storage Unit Advanced Energy Well Enhanced Optical Array Advanced Targeting Computer Improved Heavy Armor Plating Focal Shield > --- WEAPON ----------- Plasma Rifle Proton Cannon Heavy Plasma Cannon > --- INVENTORY -------- Armored Huge Wheel Advanced Cooling System Advanced Cooling System Advanced Cooling System Improved Signal Interpreter Advanced Targeting Computer Advanced Targeting Computer Improved Light Armor Plating Improved Light Armor Plating System Restoration Module Field Laser Plasma Rifle Plasma Rifle Plasma Rifle [Rating: 101] Favorites ----------- Power Cooled Ion Engine Engine Cooled Ion Engine Power Core Micro Nuclear Core Reactor Light Antimatter Reactor Propulsion Armored Wheel Treads Improved Medium Treads Leg Flexi-carbon Leg Wheel Armored Wheel Hover Unit Backup Propulsion I Utility Advanced Targeting Computer Device Improved Heat Sink Storage Huge Storage Unit Processor Advanced Targeting Computer Hackware Hacking Suite Protection Improved Utility Shielding Weapon Advanced Assault Cannon Energy Gun Pulse Rifle Energy Cannon Heavy Ion Cannon Ballistic Gun Gauss Rifle Ballistic Cannon Advanced Assault Cannon Launcher Heavy Missile Launcher Build | -11 -10 -9 -8 -8 -7 -7 -7 -6 -6 -5 -4 ------- Run | Yrd Mat Mat Mat Sto Fac Low Low Fac Ext Fac Fac Slots Evolved 12 | . . 2 2 . 2 . . 2 . 2 2 Power 1 | . . . . . . . . 1 . . . Propulsion 2 | . . . . . 1 . . . . 1 . Utility 8 | . . 2 2 . 1 . . . . 1 2 Weapon 1 | . . . . . . . . 1 . . . Parts Attached 317 | 7 9 25 30 20 27 12 3 46 36 34 68 Power 50 | 2 2 3 2 3 1 4 . 10 7 7 9 Engine 32 | 2 2 3 1 2 1 4 . 7 6 4 . Core 8 | . . . 1 . . . . 1 1 3 2 Reactor 10 | . . . . 1 . . . 2 . . 7 Propulsion 96 | 2 2 7 6 8 12 4 2 18 15 3 17 Treads 7 | . . . . 2 . . . . 5 . . Leg 6 | . . . . . . . . . . . 6 Wheel 82 | 2 2 7 6 6 12 4 2 18 10 3 10 Hover 1 | . . . . . . . . . . . 1 Flight . | . . . . . . . . . . . . Utility 100 | 1 4 5 13 6 6 2 1 9 7 20 26 Device 43 | . 2 1 8 1 . . . 3 4 9 15 Storage 14 | 1 2 . . 3 . 1 . . 1 3 3 Processor 15 | . . 2 4 . 1 . . 3 . 1 4 Hackware 7 | . . 1 1 . 3 . . . . 2 . Protection 21 | . . 1 . 2 2 1 1 3 2 5 4 Artifact . | . . . . . . . . . . . . Weapon 71 | 2 1 10 9 3 8 2 . 9 7 4 16 Energy Gun 25 | 1 . 5 3 . 2 . . 1 3 2 8 Energy Cannon 19 | . 1 4 . . 3 . . 6 1 2 2 Ballistic Gun 13 | 1 . . 4 . 1 1 . 2 1 . 3 Ballistic Cannon 10 | . . 1 2 2 2 . . . 1 . 2 Launcher 4 | . . . . 1 . 1 . . 1 . 1 Special Weapon . | . . . . . . . . . . . . Impact Weapon . | . . . . . . . . . . . . Slashing Weapon . | . . . . . . . . . . . . Piercing Weapon . | . . . . . . . . . . . . Special Melee Weapon . | . . . . . . . . . . . . Unidentified Prototypes 11 | . . 3 . 4 1 . . . . 1 2 Corrupted Parts 2 | . . . . . . . . . . . 2 System Corruption 6 | . . . . . . . . . . . 6 Parts Lost 92 | . 1 1 . 1 5 5 1 2 14 10 52 Power 15 | . 1 . . . . 1 . 1 2 4 6 Propulsion 26 | . . . . . 3 3 1 . 2 2 15 Utility 22 | . . . . 1 . . . . 4 2 15 Weapon 29 | . . 1 . . 2 1 . 1 6 2 16 Highest Loss Streak 24 | . 1 1 . 1 2 4 1 1 5 5 24 To Critical Strikes 2 | . . . . . . . . . 1 . 1 Average Slot Usage (%) 95 | . 93 99 98 99 99 99 99 95 93 92 80 Engine 6 | . 13 10 6 3 6 6 7 6 6 9 . Core 1 | . . . 2 . . . . 1 4 1 5 Reactor 1 | . . . . 4 . . . 4 . . 1 Wheel 18 | . 28 21 17 17 22 22 22 16 13 15 9 Device 8 | . 6 11 9 9 . . . 9 16 15 17 Storage 8 | . 15 11 9 13 7 7 7 6 6 5 9 Processor 19 | . . 6 19 27 23 23 23 18 20 22 16 Hackware 7 | . . 10 15 . 16 15 15 6 . . . Protection 3 | . . 4 . 3 5 7 7 4 2 . 4 Energy Gun 4 | . . 9 3 9 2 . . 3 8 5 5 Energy Cannon 5 | . 13 9 1 . 6 6 . 8 5 5 2 Ballistic Gun 3 | . 14 . 9 . . . 7 6 2 . 1 Ballistic Cannon 3 | . . 2 2 9 5 7 7 . . 4 3 Naked Turns . | . . . . . . . . . . . . Heaviest Build 135 | 13 20 28 29 101 106 106 108 135 129 127 132 Greatest Support 88 | 20 26 32 24 24 38 38 36 48 88 60 60 Greatest Overweight (x) 10 | . . 1 1 4 4 8 4 10 7 2 4 Average Overweight (x) 1 | . . . . 3 2 2 2 2 2 2 . Largest Inventory Capacity 25 | 8 10 10 10 25 25 25 25 25 25 25 25 Average Capacity 20 | 7 9 10 10 21 25 25 25 25 25 25 15 Most Carried 25 | 4 10 10 10 25 25 25 25 25 25 25 24 Average Carried 19 | 1 8 9 9 19 24 24 22 24 23 24 13 Final Capacity 25 | 8 10 10 10 25 25 25 25 25 25 25 5 Final Carried 25 | 4 10 10 10 25 25 21 25 25 25 25 5 Class Distribution -------------------- 31% | Hacker-Mutant 28% | Scavenger-Gunner 17% | Scavenger-Mutant 11% | Mutant 5% | Hacker-Gunner 3% | Scavenger-Tank Dominant Class ---------------- Mutant | -10/Materials Scavenger-Mutant | -9/Materials Scavenger-Mutant | -8/Materials Mutant | -8/Storage Hacker-Mutant | -7/Factory Hacker-Mutant | -7/Lower Caves Hacker-Mutant | -7/Lower Caves Scavenger-Gunner | -6/Factory Scavenger-Gunner | -6/Extension Scavenger-Gunner | -5/Factory Scavenger-Gunner | -4/Factory Resources | -11 -10 -9 -8 -8 -7 -7 -7 -6 -6 -5 -4 ----------- Run | Yrd Mat Mat Mat Sto Fac Low Low Fac Ext Fac Fac Matter Collected 6384 | 273 206 312 604 459 906 141 125 1006 652 589 1111 Remotely . | . . . . . . . . . . . . Salvage Created 16295 | 88 354 1237 948 566 2011 228 129 3042 2809 1858 3025 Parts 695 | 2 26 53 53 49 85 8 7 114 96 95 107 Haulers Intercepted 22 | . 1 2 2 4 3 . . 2 5 2 1 Recyclers Shooed 13 | . . . 1 1 2 . . 4 1 1 3 Parts Field Recycled . | . . . . . . . . . . . . Retrieved Matter . | . . . . . . . . . . . . Parts Self-Destructed 16 | . . . . . . 8 8 . . . . Prevented 1 | . . . . . . . 1 . . . . Kills | -11 -10 -9 -8 -8 -7 -7 -7 -6 -6 -5 -4 ------- Run | Yrd Mat Mat Mat Sto Fac Low Low Fac Ext Fac Fac Combat Hostiles Destroyed 190 | . 9 15 16 11 24 6 3 29 18 22 37 Guns 69 | . . 9 14 4 4 . 2 13 5 6 12 Cannons 98 | . 9 5 2 7 19 6 1 12 4 16 17 AOE 12 | . . . . . . . . . 7 . 5 Classes Destroyed 20 | 1 5 5 1 . 1 1 1 1 1 2 1 Worker 18 | . . 4 1 2 3 . . 3 3 . 2 Builder 22 | . 1 . . 3 3 . . 4 6 1 4 Tunneler 2 | . . . . . . . . 2 . . . Hauler 22 | . 1 2 2 4 3 . . 2 5 2 1 Recycler 37 | 1 . 4 . 1 7 . . 6 10 3 5 Minesweeper 1 | . . . . . . . 1 . . . . Mechanic 3 | . . 1 . . 1 . . . . . 1 Operator 5 | . . 1 1 . 1 . . . 1 1 . Watcher 24 | . 1 3 3 2 5 . . 4 3 1 2 Swarmer 26 | . 3 . . 5 . . 3 . 4 7 4 Grunt 99 | . 6 13 9 1 14 4 . 21 6 7 18 Brawler 3 | . . 1 . . 1 . . . . . 1 Duelist 2 | . . . . . . . . . 1 . 1 Sentry 23 | . . 1 5 5 5 . . 3 2 1 1 Specialist 3 | . . . . . . . . . . 2 1 Hunter 11 | . . . 2 . 1 1 . 2 3 2 . Programmer 15 | . . . . . 3 . . 2 . 2 8 Heavy 1 | . . . . . . . . . . 1 . Behemoth 6 | . . . . . . 1 . 1 2 . 2 Striker 1 | . . . . . . . . . . . 1 Packrat 1 | . . . . . . . 1 . . . . Best Kill Streak 25 | 1 5 7 5 6 6 5 3 7 25 12 8 Combat Bots Only 12 | . 5 5 4 3 4 5 3 3 8 12 7 Max Kills in Single Turn 6 | 1 1 2 1 2 2 1 1 2 6 2 3 Gunslinging . | . . . . . . . . . . . . Exploded 4 | . . . . . . . . . 4 . 2 Melee . | . . . . . . . . . . . . Uniques/NPCs Destroyed . | . . . . . . . . . . . . Combat | -11 -10 -9 -8 -8 -7 -7 -7 -6 -6 -5 -4 -------- Run | Yrd Mat Mat Mat Sto Fac Low Low Fac Ext Fac Fac Hostile Shots Fired 1909 | . 37 62 91 59 180 57 10 245 264 165 739 Missed 698 | . 8 16 31 18 67 20 3 87 99 59 290 Damage Taken 15968 | . 305 409 734 411 885 801 81 1925 2227 1600 6590 Core 2588 | . 91 147 94 67 148 216 . 352 248 64 1161 Absorbed by Shields 24 | . . . . . 12 . . . . . 12 Redirected to Shielding 65 | . . 10 . . 36 19 . . . . . Ignored by Resistances 5152 | . 92 128 209 121 275 221 24 539 635 718 2190 Regen/Repaired (Parts) 1083 | . . 17 100 473 179 . . 314 . . . Core Remaining (%) 66 | 100 63 63 . 70 . . 48 . 29 93 . Volleys Fired 689 | 8 28 67 55 51 86 23 9 96 76 60 130 Largest 3 | 2 2 2 2 2 2 2 2 3 3 3 3 Hottest 240 | 70 80 125 99 111 130 113 76 240 219 224 240 Shots Fired 1656 | 16 56 124 109 93 167 46 18 279 222 180 346 Gun 796 | 16 28 53 79 42 31 2 9 131 132 70 203 Cannon 841 | . 28 71 30 51 136 39 9 148 80 110 139 Launcher 19 | . . . . . . 5 . . 10 . 4 Special . | . . . . . . . . . . . . Kinetic 610 | 8 28 14 78 51 67 25 18 94 49 50 128 Thermal 884 | 8 28 100 31 42 100 16 . 185 117 78 179 Explosive 19 | . . . . . . 5 . . 10 . 4 Electromagnetic 143 | . . 10 . . . . . . 46 52 35 Robot Hit Streak 68 | 4 12 17 18 27 42 36 12 39 58 25 68 Robot Miss Streak 4 | 1 4 3 3 2 2 2 1 3 3 3 2 Penetration Max 2 | . . . 1 . . . . 1 1 . 2 Secondary Targets 2 | . . . 2 . . . . . . . . Max Gunslinging Chain 1 | . . . 1 . . . . . . . . Shots Hit Robots 1283 | 11 34 79 79 72 132 40 13 230 173 132 288 Core Hits 598 | 2 17 47 43 27 64 13 6 110 97 60 112 Critical Kills 12 | . . 1 2 . 1 . 1 3 2 2 . Critical Parts Destroyed 4 | . . . 1 . . . . 1 . 2 . Critical Strikes 45 | . . 3 3 2 7 1 1 4 5 7 12 Burn 16 | . . 2 . 2 2 . . . 2 . 8 Meltdown 6 | . . 1 . . 1 . . 2 2 . . Destroy 10 | . . . 3 . . . 1 2 . 4 . Blast 11 | . . . . . 4 1 . . . 2 4 Corrupt 2 | . . . . . . . . . 1 1 . Melee Attacks . | . . . . . . . . . . . . Impact . | . . . . . . . . . . . . Slashing . | . . . . . . . . . . . . Piercing . | . . . . . . . . . . . . Sneak Attacks . | . . . . . . . . . . . . Combat Hostiles . | . . . . . . . . . . . . Follow-up Attacks . | . . . . . . . . . . . . Damage Inflicted 35467 | 102 470 1438 1553 1686 3898 1237 288 6268 6102 3738 8687 Guns 13285 | 102 107 675 1196 627 408 45 148 2431 2460 1313 3773 Cannons 18963 | . 363 763 357 1059 3125 972 140 3785 2135 2235 4029 Explosions 3219 | . . . . . 365 220 . 52 1507 190 885 Melee . | . . . . . . . . . . . . Ramming . | . . . . . . . . . . . . Kinetic 11613 | 51 107 173 1195 1059 1290 564 288 1380 791 930 3785 Thermal 18299 | 51 363 1076 358 627 2243 453 . 4836 3067 1537 3688 Explosive 2532 | . . . . . 365 220 . . 1416 . 531 Electromagnetic 3023 | . . 189 . . . . . 52 828 1271 683 Impact . | . . . . . . . . . . . . Slashing . | . . . . . . . . . . . . Piercing . | . . . . . . . . . . . . Highest Corruption 11 | . . . . . 1 1 1 . . 2 11 Average Corruption 2 | . . . . . 1 1 1 . . 1 6 Corruption Purged 5 | . . . . . . . . . . . 5 Corruption Blocked . | . . . . . . . . . . . . Effects 54 | . . . . . 5 7 3 . . . 39 Message Errors 18 | . . . . . 3 3 2 . . . 10 Matter Fused 14 | . . . . . 1 3 1 . . . 9 Heat Flow Errors 6 | . . . . . 1 1 . . . . 4 Energy Discharges 1 | . . . . . . . . . . . 1 Parts Rejected 2 | . . . . . . . . . . . 2 Data Loss (minor) 4 | . . . . . . . . . . . 4 Data Loss (major) 1 | . . . . . . . . . . . 1 Misfires 1 | . . . . . . . . . . . 1 Alerts 1 | . . . . . . . . . . . 1 Weapon Failures 6 | . . . . . . . . . . . 6 Overload Shots . | . . . . . . . . . . . . Overflow Damage 552 | . . . . 35 20 . 3 6 121 18 349 Projectiles 460 | . . . . 35 20 . 3 6 107 18 271 Explosions 92 | . . . . . . . . . 14 . 78 Melee . | . . . . . . . . . . . . Knockbacks 46 | . . 2 1 5 11 1 . . 1 7 18 Impact . | . . . . . . . . . . . . Kinetic 45 | . . 2 1 5 11 1 . . 1 7 17 Secondary 1 | . . . . . . . . . . . 1 Self-Inflicted Damage 424 | . . . . . 42 50 . . 15 . 317 Shots 9 | . . . . . 1 1 . . 1 . 6 Rammed . | . . . . . . . . . . . . Targets Rammed . | . . . . . . . . . . . . Kicked . | . . . . . . . . . . . . Crushed . | . . . . . . . . . . . . Highest Temperature 389 | 80 218 171 21 219 276 221 36 389 297 321 321 Average Temperature 88 | 32 84 53 6 60 64 74 16 127 115 73 93 Received Heat Transfer 4827 | . 135 297 405 207 390 198 . 912 495 162 1626 Effects 12 | . . . . . 1 1 . 7 2 1 . Energy Bleed 3 | . . . . . 1 1 . 1 . . . Interference 8 | . . . . . . . . 5 2 1 . Short Circuit 1 | . . . . . . . . 1 . . . Siege Activations . | . . . . . . . . . . . . Robots Corrupted 1 | . . . . . . . . . . 1 . Combat Hostiles . | . . . . . . . . . . . . Parts Fried 17 | . . . . . . . . 1 5 9 2 Impact Corruptions . | . . . . . . . . . . . . Robots Melted 13 | . . 1 . . 1 . . 5 3 . 3 Combat Hostiles 11 | . . 1 . . 1 . . 4 2 . 3 Parts Melted 64 | . 1 7 1 1 4 . . 19 14 3 14 Heat Transferred 32616 | 148 777 2399 814 1480 3404 592 . 7713 5346 2459 7484 Parts Sabotaged . | . . . . . . . . . . . . Parts Stolen . | . . . . . . . . . . . . Parts Stripped . | . . . . . . . . . . . . Power Chain Reactions 2 | . . . . . . . . . 1 . 1 Alert | -11 -10 -9 -8 -8 -7 -7 -7 -6 -6 -5 -4 ------- Run | Yrd Mat Mat Mat Sto Fac Low Low Fac Ext Fac Fac Peak Influence 494 | 5 142 151 239 399 327 . . 382 457 483 494 Initial 170 | . 2 1 . 16 64 . . . 82 170 155 Average 167 | 1 27 58 88 195 169 . . 181 255 181 250 Maximum Alert Level 2 | . . . 1 1 1 . . 1 2 2 2 Low Security (%) 66 | 100 100 100 99 46 67 . . 68 38 66 33 Level 1 31 | . . . . 53 32 . . 31 46 30 58 Level 2 2 | . . . . . . . . . 14 3 7 Level 3 . | . . . . . . . . . . . . Level 4 . | . . . . . . . . . . . . Level 5 . | . . . . . . . . . . . . High Security . | . . . . . . . . . . . . Max Security . | . . . . . . . . . . . . Squads Dispatched 45 | . . 2 3 2 7 . . 8 2 6 15 Investigation 12 | . . 1 2 1 2 . . 3 . 2 1 Extermination 12 | . . . . . 3 . . 3 . 1 5 Reinforcement 14 | . . 1 1 . 2 . . 2 2 3 3 Assault . | . . . . . . . . . . . . Garrison 7 | . . . . 1 . . . . . . 6 Intercept . | . . . . . . . . . . . . Searches Triggered . | . . . . . . . . . . . . Construction Impeded 2 | . . . . . . . . . 1 . 1 Haulers Reinforced 4 | . . . . . 1 . . 1 . 1 1 Active Scanning Responses . | . . . . . . . . . . . . Cargo Convoy Interrupts 1 | . . . . . . . . . . . 1 Stealth | -11 -10 -9 -8 -8 -7 -7 -7 -6 -6 -5 -4 --------- Run | Yrd Mat Mat Mat Sto Fac Low Low Fac Ext Fac Fac Distress Signals 12 | . . 1 1 . 3 . . 2 3 . 2 Communications Jammed . | . . . . . . . . . . . . Distress Signals . | . . . . . . . . . . . . Times Spotted 278 | . 10 26 24 19 32 6 3 44 25 30 59 Peak Tracking Total 11 | . 3 6 5 3 4 4 3 5 5 7 11 Tactical Retreats 13 | . . 1 . 2 1 . . 4 1 2 2 Traps | -11 -10 -9 -8 -8 -7 -7 -7 -6 -6 -5 -4 ------- Run | Yrd Mat Mat Mat Sto Fac Low Low Fac Ext Fac Fac Traps Triggered 13 | . 1 . 2 2 6 . . 1 . . 1 Indirectly . | . . . . . . . . . . . . Trap Hack Attempts . | . . . . . . . . . . . . Triggered . | . . . . . . . . . . . . Disarmed . | . . . . . . . . . . . . Reprogrammed . | . . . . . . . . . . . . Reused . | . . . . . . . . . . . . Traps Extracted . | . . . . . . . . . . . . Installed . | . . . . . . . . . . . . Triggered 1 | . . . . . . . 1 . . . . Most Traps Carried 3 | . . . . . . . 3 3 . . . Machines | -11 -10 -9 -8 -8 -7 -7 -7 -6 -6 -5 -4 ---------- Run | Yrd Mat Mat Mat Sto Fac Low Low Fac Ext Fac Fac Machines Disabled 33 | . . . 1 3 4 . . 7 2 3 13 Max in Single Turn 6 | . . . 1 1 4 . . 1 1 2 6 Garrison Access 1 | . . . 1 . . . . . . . . Machines Repaired . | . . . . . . . . . . . . Machines Dismantled . | . . . . . . . . . . . . Machines Sabotaged . | . . . . . . . . . . . . Overloaded Fab Kills . | . . . . . . . . . . . . Hacking | -11 -10 -9 -8 -8 -7 -7 -7 -6 -6 -5 -4 --------- Run | Yrd Mat Mat Mat Sto Fac Low Low Fac Ext Fac Fac Machines Accessed 40 | . 6 4 6 6 7 . . 5 1 3 2 Terminals 25 | . 5 3 3 4 4 . . 2 1 3 . Fabricators 2 | . . . . . . . . 1 . . 1 Repair Stations 7 | . . 1 1 2 2 . . 1 . . . Recycling Units 1 | . 1 . . . . . . . . . . Scanalyzers 3 | . . . 1 . 1 . . 1 . . . Garrison Access 2 | . . . 1 . . . . . . . 1 Total Hacks 117 | . 18 14 19 13 23 . . 16 3 6 5 Successful 63 | . 5 7 15 10 8 . . 13 1 2 2 Failed 54 | . 13 7 4 3 15 . . 3 2 4 3 Catastrophic 17 | . 4 3 1 . 5 . . 1 . 2 1 Database Lockouts . | . . . . . . . . . . . . Manual 51 | . 16 11 4 4 8 . . 2 . 6 . Terminals 66 | . 17 11 8 6 11 . . 4 3 6 . Fabricators 6 | . . . . . . . . 3 . . 3 Repair Stations 31 | . . 3 6 7 9 . . 6 . . . Recycling Units 1 | . 1 . . . . . . . . . . Scanalyzers 9 | . . . 3 . 3 . . 3 . . . Garrison Access 4 | . . . 2 . . . . . . . 2 Terminal Hacks 24 | . 4 5 5 4 2 . . 1 1 2 . Record 2 | . 1 . 1 . . . . . . . . Part Schematic 1 | . . . . 1 . . . . . . . Robot Analysis 6 | . 2 2 2 . . . . . . . . Open Door 3 | . . . . 1 . . . 1 1 . . Open DSF 1 | . . . . . 1 . . . . . . Level Access Points 2 | . . . . 1 . . . . . 1 . Emergency Access Points 1 | . . 1 . . . . . . . . . Unreport Threat 7 | . 1 2 1 1 1 . . . . 1 . Zone Layout 1 | . . . 1 . . . . . . . . Fabricator Hacks 5 | . . . . . . . . 3 . . 2 Load Schematic 2 | . . . . . . . . 1 . . 1 Build 3 | . . . . . . . . 2 . . 1 Repair Station Hacks 25 | . . 2 6 6 5 . . 6 . . . Scan Component 13 | . . 1 3 3 3 . . 3 . . . Repair 12 | . . 1 3 3 2 . . 3 . . . Recycling Unit Hacks 1 | . 1 . . . . . . . . . . Report Inventory 1 | . 1 . . . . . . . . . . Scanalyzer 7 | . . . 3 . 1 . . 3 . . . Insert Component 4 | . . . 1 . 1 . . 2 . . . Analyze 3 | . . . 2 . . . . 1 . . . Garrison Access Hacks 1 | . . . 1 . . . . . . . . Seal Access 1 | . . . 1 . . . . . . . . Unauthorized Hacks . | . . . . . . . . . . . . Terminals . | . . . . . . . . . . . . Fabricators . | . . . . . . . . . . . . Repair Stations . | . . . . . . . . . . . . Recycling Units . | . . . . . . . . . . . . Scanalyzers . | . . . . . . . . . . . . Garrison Access . | . . . . . . . . . . . . Data Cores Recovered 3 | . . 1 . . 1 . . . . 1 . Used 1 | . . 1 . . . . . . . . . Hacking Detections 30 | . 6 4 4 3 5 . . 4 . 2 2 Full Trace Events 15 | . 2 1 3 1 2 . . 3 . 2 1 Feedback Events 1 | . . . . . . . . . . 1 . Hackware Fried 1 | . . . . . . . . . . 1 . Feedback Blocked . | . . . . . . . . . . . . Robot Schematics Acquired . | . . . . . . . . . . . . Robots Built 1 | . . . . . . . . 1 . . . Authchips . | . . . . . . . . . . . . Time 40 | . . . . . . . . 40 . . . Total Robot Build Rating 1 | . . . . . . . . 1 . . . Part Schematics Acquired 2 | . . . . 1 . . . 1 . . . Parts Built 3 | . . . . . . . . 2 . . 1 Authchips . | . . . . . . . . . . . . Time 131 | . . . . . . . . 47 . . 84 Total Part Build Rating 14 | . . . . . . . . 10 . . 4 Parts Repaired 12 | . . 1 3 3 2 . . 3 . . . Time 400 | . . 26 96 90 38 . . 150 . . . Parts Recycled . | . . . . . . . . . . . . Recycled Matter . | . . . . . . . . . . . . Retrieved Matter . | . . . . . . . . . . . . Retrieved Components . | . . . . . . . . . . . . Parts Scanalyzed 3 | . . . 1 . 1 . . 1 . . . Part Schematics Acquired 1 | . . . . . . . . 1 . . . Parts Damaged 1 | . . . . . 1 . . . . . . Bothacking | -11 -10 -9 -8 -8 -7 -7 -7 -6 -6 -5 -4 ------------ Run | Yrd Mat Mat Mat Sto Fac Low Low Fac Ext Fac Fac Used RIF Installer . | . . . . . . . . . . . . Robots Hacked . | . . . . . . . . . . . . Non-combat . | . . . . . . . . . . . . Combat . | . . . . . . . . . . . . Robot Hacks Applied . | . . . . . . . . . . . . Relay Couplers Released . | . . . . . . . . . . . . Fabnet Peak Effective % . | . . . . . . . . . . . . Robots Rewired . | . . . . . . . . . . . . Allies Hacked . | . . . . . . . . . . . . Hacks Repelled . | . . . . . . . . . . . . Allies | -11 -10 -9 -8 -8 -7 -7 -7 -6 -6 -5 -4 -------- Run | Yrd Mat Mat Mat Sto Fac Low Low Fac Ext Fac Fac Total Allies 2 | . . . . 1 . . . 1 . . . Largest Group 1 | . . . . 1 . . . 1 . . . Highest-Rated Group 100 | . . . . 100 . . . 9 . . . Highest-Rated Ally 100 | . . . . 100 . . . 9 . . . Total Orders 4 | . . . . . . . . 4 . . . ROAM 1 | . . . . . . . . 1 . . . PICKUP 1 | . . . . . . . . 1 . . . COLLECT 2 | . . . . . . . . 2 . . . Ally Attacks 12 | . . . . 12 . . . . . . . Total Damage 415 | . . . . 415 . . . . . . . Kills 6 | . . . . 6 . . . . . . . Allies Corrupted . | . . . . . . . . . . . . Allies Melted . | . . . . . . . . . . . . Intel | -11 -10 -9 -8 -8 -7 -7 -7 -6 -6 -5 -4 ------- Run | Yrd Mat Mat Mat Sto Fac Low Low Fac Ext Fac Fac Robot Analysis Total 6 | . 2 2 2 . . . . . . . . Derelict Logs Recovered . | . . . . . . . . . . . . Drone Launches . | . . . . . . . . . . . . Drone Recoveries . | . . . . . . . . . . . . Exploration | -11 -10 -9 -8 -8 -7 -7 -7 -6 -6 -5 -4 ------------- Run | Yrd Mat Mat Mat Sto Fac Low Low Fac Ext Fac Fac Turns Passed 11854 | 80 568 824 962 1239 1764 938 510 1900 757 941 1371 Spaces Moved 6812 | 52 505 543 552 664 1099 676 381 893 302 505 640 Core 158 | 5 . . . . . . . . . . 153 Treads 5 | . . . . . . . . . 5 . . Legs 22 | . . . . . . . . . . . 22 Wheels 6626 | 47 505 543 552 664 1099 676 381 893 297 505 464 Hover 1 | . . . . . . . . . . . 1 Flight . | . . . . . . . . . . . . Fastest Speed 50 | 50 80 90 90 90 116 120 120 123 130 130 50 Average Speed 118 | 77 83 95 104 139 120 123 124 134 138 130 103 Slowest Speed 320 | 80 90 105 105 150 145 210 150 240 320 130 200 Overloaded Moves . | . . . . . . . . . . . . Propulsion Burnouts . | . . . . . . . . . . . . Robots Hopped . | . . . . . . . . . . . . Cave-ins Triggered . | . . . . . . . . . . . . Exploration Rate (%) 37 | 4 54 46 37 74 31 74 43 19 34 15 14 Regions Visited 11 Branch Regions 4 Pre-discovered Areas . | . . . . . . . . . . . . Known Exits Taken 8 | . . 1 1 1 1 . 1 1 1 1 . Unknown Exits Taken 3 | 1 1 . . . . 1 . . . . . Scrap Searched 5 | . . . . . . 4 1 . . . . Spaces Dug 1 | . . . . . . . . . . . 1 Terrain Destroyed 258 | . . 1 3 10 32 39 2 8 89 12 62 Melee . | . . . . . . . . . . . . Projectile 64 | . . 1 3 10 4 1 2 8 6 12 17 AOE 194 | . . . . . 28 38 . . 83 . 45 Terrain Rammed . | . . . . . . . . . . . . Walls Destroyed . | . . . . . . . . . . . . Machines Disabled . | . . . . . . . . . . . . Actions | -11 -10 -9 -8 -8 -7 -7 -7 -6 -6 -5 -4 --------- Run | Yrd Mat Mat Mat Sto Fac Low Low Fac Ext Fac Fac Total 9237 | 76 606 734 830 884 1383 729 398 1385 475 660 1077 Wait 807 | . 36 40 145 68 91 14 . 258 . 11 144 Move 6800 | 51 504 542 551 663 1098 675 380 892 301 503 640 Hop . | . . . . . . . . . . . . Pick Up 364 | 10 18 32 30 57 34 4 5 48 38 30 58 Fast Attach . | . . . . . . . . . . . . Attach 228 | 6 6 13 21 7 20 7 2 33 29 22 62 Detach 14 | . 1 . . . 2 . 1 2 2 2 4 Swap 89 | 1 3 12 9 13 7 5 1 13 7 12 6 Drop 208 | . 10 28 19 17 22 1 . 43 22 20 26 Fire 689 | 8 28 67 55 51 86 23 9 96 76 60 130 Melee . | . . . . . . . . . . . . Ram . | . . . . . . . . . . . . Kick . | . . . . . . . . . . . . Crush . | . . . . . . . . . . . . Escape Stasis 38 | . . . . 8 23 . . . . . 7 Rewire . | . . . . . . . . . . . . Trap . | . . . . . . . . . . . . Miscellaneous . | . . . . . . . . . . . . Route ------- -11/Scrapyard -10/Materials (discovered 2 exits: *Mat / [*Min]) -9/Materials (discovered 3 exits: *Mat x2 / *Min) -8/Materials (discovered 2 exits: *Fac / *Sto) -8/Storage -7/Factory (discovered 2 exits: *Fac / *Low) -7/Lower Caves -7/Lower Caves -6/Factory (discovered 2 exits: *Low / *Ext) -6/Extension -5/Factory (discovered 4 exits: *Fac x4) -4/Factory History --------- Turn | Location | Event 11 | -11/Scrapyard | Discovered new exit (range 16) 81 | -11/Scrapyard | Entered Materials 207 | -10/Materials | Discovered new exit (range 13) 252 | -10/Materials | Discovered new exit (range 16) 312 | -10/Materials | Build established: Mutant 649 | -10/Materials | Entered another Materials area 649 | -9/Materials | Evolved 2 slots: Utility x2 894 | -9/Materials | Discovered new exit (range 10) 925 | -9/Materials | Build established: Scavenger-Mutant 1118 | -9/Materials | Discovered new exit (range 16) 1194 | -9/Materials | Identified exit to Mines 1252 | -9/Materials | Repaired Com. Wheel 1370 | -9/Materials | Discovered new exit (range 6) 1374 | -9/Materials | Identified exit to Materials 1473 | -9/Materials | Entered another Materials area 1473 | -8/Materials | Evolved 2 slots: Utility x2 1623 | -8/Materials | Discovered new exit (range 16) 1699 | -8/Materials | Identified exit to Storage 1747 | -8/Materials | Repaired Beam Rifle 1780 | -8/Materials | Repaired Arm. Wheel 1802 | -8/Materials | Build established: Hacker-Mutant 1814 | -8/Materials | Repaired Arm. Wheel 1980 | -8/Materials | Discovered new exit (range 3) 1992 | -8/Materials | Identified exit to Factory 2158 | -8/Materials | Build established: Scavenger-Mutant 2435 | -8/Materials | Entered Storage 2464 | -8/Storage | Met 01-MTF 2621 | -8/Storage | Repaired Arm. Wheel 2842 | -8/Storage | Garrison activated, responded to threat 2955 | -8/Storage | Build established: Mutant 3278 | -8/Storage | Build established: Scavenger-Mutant 3558 | -8/Storage | Repaired Huge Storage Unit 3652 | -8/Storage | Repaired Arm. Wheel 3674 | -8/Storage | Entered Factory 3674 | -7/Factory | Evolved 2 slots: Propulsion x1, Utility x1 3950 | -7/Factory | Build established: Hacker-Mutant 4009 | -7/Factory | Discovered new exit (range 11) 4044 | -7/Factory | Identified exit to Lower Caves 4434 | -7/Factory | Discovered new exit (range 8) 4443 | -7/Factory | Identified exit to Factory 5052 | -7/Factory | Repaired Broken Arm. Wheel 5069 | -7/Factory | Repaired Arm. Wheel 5438 | -7/Factory | Entered Lower Caves 6249 | -7/Lower Caves | Spotted B-75 Beast 6300 | -7/Lower Caves | Core integrity fell below 50% 6303 | -7/Lower Caves | Destroyed B-75 Beast 6312 | -7/Lower Caves | Lost 4 parts (1p2n1w) 6368 | -7/Lower Caves | Discovered new exit (range 7) 6376 | -7/Lower Caves | Entered another Lower Caves area 6877 | -7/Lower Caves | Discovered exit to Factory (range 5) 6886 | -7/Lower Caves | Entered Factory 6886 | -6/Factory | Evolved 2 slots: Power x1, Weapon x1 7283 | -6/Factory | Build established: Hacker-Gunner 7338 | -6/Factory | Fabricated R-06 Scavenger (x1) 7385 | -6/Factory | Fabricated Hvy. Plasma Cannon (x2) 7461 | -6/Factory | Spotted B-75 Beast 7480 | -6/Factory | Destroyed B-75 Beast 7709 | -6/Factory | Discovered new exit (range 8) 7904 | -6/Factory | Build established: Scavenger-Gunner 7909 | -6/Factory | Identified exit to Lower Caves 8226 | -6/Factory | Repaired Lgt. Antimatter Reactor 8267 | -6/Factory | Repaired Hrd. Medium Armor Plating 8319 | -6/Factory | Repaired Hvy. Plasma Cannon 8515 | -6/Factory | Discovered new exit (range 9) 8523 | -6/Factory | Identified exit to Extension 8786 | -6/Factory | Entered Extension 8890 | -6/Extension | Spotted B-75 Beast 8909 | -6/Extension | Destroyed B-75 Beast 8936 | -6/Extension | Disrupted transfer network 8938 | -6/Extension | Lost 4 parts (1p1n1u1w) 8938 | -6/Extension | Spotted B-75 Beast 9008 | -6/Extension | Core integrity fell below 50% 9038 | -6/Extension | Lost 4 parts (1n2u1w) 9126 | -6/Extension | Destroyed 8 combat bots 9183 | -6/Extension | Destroyed B-75 Beast 9216 | -6/Extension | Lost 5 parts (1p1u3w) 9379 | -6/Extension | Discovered new exit (range 3) 9380 | -6/Extension | Identified exit to Factory 9543 | -6/Extension | Entered Factory 9543 | -5/Factory | Evolved 2 slots: Propulsion x1, Utility x1 9735 | -5/Factory | Spotted B-75 Beast 9807 | -5/Factory | Hacking Suite fried by hacking feedback 10161 | -5/Factory | Identified exit to Factory 10324 | -5/Factory | Lost 4 parts (1p2n1w) 10380 | -5/Factory | Destroyed 12 combat bots 10461 | -5/Factory | Lost 5 parts (3p1u1w) 10484 | -5/Factory | Entered another Factory area 10484 | -4/Factory | Spotted B-86 Titan 10484 | -4/Factory | Evolved 2 slots: Utility x2 10575 | -4/Factory | Lost 10 parts (1p2n4u3w) 10696 | -4/Factory | Garrison activated, responded to threat 10870 | -4/Factory | Destroyed B-86 Titan 10913 | -4/Factory | Lost 3 parts (1p1u1w) 10921 | -4/Factory | System corruption reached 10% 10995 | -4/Factory | Lost 3 parts (1u2w) 11000 | -4/Factory | Garrison activated, responded to threat 11061 | -4/Factory | Build established: Scavenger-Tank 11415 | -4/Factory | Spotted B-86 Titan 11506 | -4/Factory | Destroyed B-86 Titan 11673 | -4/Factory | Fabricated Hvy. Missile Launcher? 11681 | -4/Factory | Cargo convoy interrupted 11681 | -4/Factory | Spotted Striker 11707 | -4/Factory | Core integrity fell below 50% 11720 | -4/Factory | Destroyed 7 combat bots 11735 | -4/Factory | Destroyed Striker 11782 | -4/Factory | Lost 24 parts (3p8n7u6w) 11804 | -4/Factory | Core integrity fell below 20% 11855 | -4/Factory | Destroyed by P-70 Sage with High-powered Shock Rifle Last Messages --------------- 11836_ Penetrated by Slug. 11836_ Slug penetrates Wall. 11836_ Penetrated by Slug. 11837_ U-05 Engineer lays Concrete. 11839_ Slug penetrates Wall. 11839_ U-05 Engineer lays Concrete. 11839_ Slug penetrates Wall. 11841_ System corrupted: Matter fused (-8). 11843_ Acquired 52 matter. 11847_ Acquired Flexi-carbon Leg. 11851_ Slug penetrates Wall. 11851_ Slug penetrates Construction Platform. 11852_ Acquired VTOL Module. 11853_ Slug penetrates Construction Platform. 11854_ U-05 Engineer lays Concrete. 11854_ Acquired VTOL Module. 11854_ Penetrated by Slug. 11855_ U-05 Engineer lays Concrete. 11855_ Dropped Flexi-carbon Leg. Map ----- +----------------------------------------------------+ | ?????????????????????# # ###########/### | | ?????????????????????# ! # ## # | | ?????????????????????# ?# ## # | | ?????????????????????###########?# ## # | | ?????????????????????############# ## " "" # | | ?????????????????????# + ## """" ! " | | ?????????????????????# ## ## """" # | | ???????????????????### ## ## """" # | | ??????????????????? # ## ## """" [ # | | ??????????????????? # """""" ## ## """" # | | ??????????????????? # """""" ## ## """" ="!# | | ???????????????????" # """""" ## " R" " | | ??????????????????"" # """""" ## # [! !" | | ??????????????????"" # """""" ## #######/!! * | | ???????????????????" # """""" ## | | ???????????????????" # """""" ## | | ???????????????????" # """""" + | | ???????????????????" # """""" ## | | ?????####?????????? # ## | | ?????# #?????????? # ! ## | | ?????# #######+#######+########## pp | | ?????# %* | | ###### % %! A! | | %![%% %!% g | | ###### % "!" "" [ h % | | ?????#! """"" *%@ % h u | | ?????# """"""" ** % ##### # # | | ###### =/ """ u % % ! #???## | | %%% % * # # # | | %"%! """ " " "" " # """" # ## # | | ! """""" """"""" + ??"" # #### | | * """""" """"""" #?????" + #??? | | % = % """"" """"""" #?????? # #??# | | ###### ! %% #?????? # #??# | | ????# % ######### % #### | | ?????# ^ ^ | | ?????# % % ^% | | ?????# ! "" ^ % | | ?????# ^ !!!Y" | | ?????# % ! [ " | | ?????########%[! % | | ??????#######!!%"" """ """ "%" """%%"" """ """ % | | ??????# !# %%"" """ """ %"" """ """ """ """ % | | ??????# """ # !%"" %%" """ """ """ """ """ """ % | | ??????# """ + !""" %"" %"% """ """ """ """ " | | ??????# """ # % % | | ??????# "" # %% | | ??????# "" # % #########+####### % | | ??????# # % #??# # %^ | | ??????####+## #??# * + * | +----------------------------------------------------+ Best States ------------- Heat Dissipation 105 Coolant Potential 65 Energy Generation 43 Energy Capacity 860 Matter Stores 300 Matter Capacity 300 Sight Range 22 Robot Scan Range 15 Terrain Scan Density 10 Power Amplification 20 Additional Mass Support 9 Base Temperature (-) 200 Armor Coverage 600 Resistance: KI 40 Resistance: TH 20 Resistance: EX 20 Resistance: EM 20 Resistance: I 20 Resistance: S 20 Resistance: P 20 Propulsion Shielding 33 Utility Shielding 66 Evasion (%) 50 Targeting Accuracy 24 Target Analysis 5 Armor Integrity Analysis 40 Recoil Reduction 2 Matter Filtering 30 Kinecelleration 30 Offensive Hacking 30 Defensive Hacking 20 Authchip Count 2 Item Schematics ----------------- Hvy. Plasma Cannon | -8/Storage | Hacked Hvy. Missile Launcher | -6/Factory | Scanalyzed Robot Schematics ------------------ None Fabricated ------------ R-06 Scavenger | x1 | -6/Factory | Preloaded Hvy. Plasma Cannon | x2 | -6/Factory Hvy. Missile Launcher | x1 | -4/Factory Alien Tech Used ----------------- None Achievements -------------- Armchair Analyst Treasure Hunter Challenges ------------ None Game ------ Seed FrostWeaponFlamer Manual? 0 Play Time 03:42:05 Cumulative 48.4 hours Start 2024.04.05 @ 20:22:17 End 2024.04.06 @ 00:09:49 Sessions 1 Manual Loads 0 Difficulty Adventurer Special Mode None Game No. 15 Rogue 0 Adventurer 15 Explorer 0 Win Type - Total 1 Types 1/0/0/0/0/0/0/0/0 Lore% 10 Gallery% 35 Achievement% 26 Wizard Run 0 Options --------- Layout 2 ASCII 0 Keyboard 0 Movement Mouse Keybinds 0 Fullscreen 1 Font 24/Smallcaps Map View 25x24 Zoom Use 77% Tactical HUD 1 Map Filters NONE Filters NONE Steam 1 RUN: c7a29453-61dd-4809-9fd6-035b61e022d1